[Event "*** SCC Grand Prix: Titled Tuesday Blitz"]
[Site "Chess.com"]
[Date "2020.06.02"]
[Round "5"]
[White "olksuna"]
[Black "Alohamora11"]
[Result "0-1"]
[WhiteElo "2569"]
[BlackElo "2422"]
[TimeControl "180+1"]
[EndTime "10:59:14 PDT"]
[Termination "Alohamora11 won on time"]

1. e4 {[%clk 0:03:00.9]} 1... c5 {[%clk 0:02:46.7]} 2. Nf3 {[%clk 0:03:00.6]}
2... g6 {[%clk 0:02:46.3]} 3. c3 {[%clk 0:02:57.4]} 3... Bg7 {[%clk 0:02:46]} 4.
d4 {[%clk 0:02:57.1]} 4... cxd4 {[%clk 0:02:46.9]} 5. cxd4 {[%clk 0:02:57.4]}
5... d5 {[%clk 0:02:47.5]} 6. e5 {[%clk 0:02:57.3]} 6... Bg4 {[%clk 0:02:48]} 7.
Bb5+ {[%clk 0:02:57]} 7... Nd7 {[%clk 0:02:48.6]} 8. Nc3 {[%clk 0:02:51.3]} 8...
e6 {[%clk 0:02:48.4]} 9. h3 {[%clk 0:02:49.2]} 9... Bxf3 {[%clk 0:02:48.1]} 10.
Qxf3 {[%clk 0:02:50.1]} 10... a6 {[%clk 0:02:48]} 11. Bd3 {[%clk 0:02:43.6]}
11... Ne7 {[%clk 0:02:48.3]} 12. O-O {[%clk 0:02:43.2]} 12... O-O {[%clk
0:02:48.2]} 13. Ne2 {[%clk 0:02:39.3]} 13... Nc6 {[%clk 0:02:40.1]} 14. Be3
{[%clk 0:02:38.3]} 14... Qb6 {[%clk 0:02:30.4]} 15. a3 {[%clk 0:02:23.1]} 15...
f6 {[%clk 0:01:56.6]} 16. exf6 {[%clk 0:02:05.9]} 16... Nxf6 {[%clk 0:01:49.2]}
17. Qg3 {[%clk 0:01:55.2]} 17... Rae8 {[%clk 0:01:44.7]} 18. b4 {[%clk
0:01:47.9]} 18... Nh5 {[%clk 0:01:42.7]} 19. Qg4 {[%clk 0:01:46.8]} 19... e5
{[%clk 0:01:34.4]} 20. dxe5 {[%clk 0:01:44.3]} 20... Qc7 {[%clk 0:01:30.9]} 21.
f4 {[%clk 0:01:36.2]} 21... Bh6 {[%clk 0:01:20.5]} 22. Bc5 {[%clk 0:01:33.1]}
22... Rf7 {[%clk 0:01:09.7]} 23. Bxg6 {[%clk 0:01:26.2]} 23... hxg6 {[%clk
0:00:53.8]} 24. Qxg6+ {[%clk 0:01:24.7]} 24... Ng7 {[%clk 0:00:43.5]} 25. Qxh6
{[%clk 0:01:20.9]} 25... b6 {[%clk 0:00:44.4]} 26. Bd6 {[%clk 0:01:20.4]} 26...
Qd7 {[%clk 0:00:43]} 27. Ng3 {[%clk 0:01:14]} 27... Re6 {[%clk 0:00:41.5]} 28.
Qh4 {[%clk 0:01:09.6]} 28... Rg6 {[%clk 0:00:38.2]} 29. Rae1 {[%clk 0:00:52.6]}
29... Nf5 {[%clk 0:00:36.8]} 30. Nxf5 {[%clk 0:00:47.6]} 30... Qxf5 {[%clk
0:00:37.7]} 31. Rc1 {[%clk 0:00:31.8]} 31... Rfg7 {[%clk 0:00:35.8]} 32. Rf2
{[%clk 0:00:27.5]} 32... Qe4 {[%clk 0:00:15.9]} 33. Rcc2 {[%clk 0:00:19.4]}
33... Qe1+ {[%clk 0:00:14.7]} 34. Kh2 {[%clk 0:00:14.8]} 34... Rxg2+ {[%clk
0:00:15.2]} 35. Rxg2 {[%clk 0:00:15]} 35... Qxh4 {[%clk 0:00:16.1]} 36. Rxc6
{[%clk 0:00:12.1]} 36... Qxf4+ {[%clk 0:00:14.9]} 37. Kg1 {[%clk 0:00:09.6]}
37... Qe3+ {[%clk 0:00:12.9]} 38. Kh2 {[%clk 0:00:09]} 38... Rxg2+ {[%clk
0:00:12]} 39. Kxg2 {[%clk 0:00:09.4]} 39... d4 {[%clk 0:00:12.4]} 40. Rc8+
{[%clk 0:00:07]} 40... Kf7 {[%clk 0:00:12.3]} 41. Rc7+ {[%clk 0:00:07.5]} 41...
Ke6 {[%clk 0:00:11.9]} 42. Re7+ {[%clk 0:00:07.6]} 42... Kd5 {[%clk 0:00:12.3]}
43. Rd7 {[%clk 0:00:08]} 43... Qe2+ {[%clk 0:00:08.8]} 44. Kg3 {[%clk
0:00:07.3]} 44... d3 {[%clk 0:00:09]} 45. Bf8+ {[%clk 0:00:03.2]} 45... Ke6
{[%clk 0:00:08.9]} 46. Rd6+ {[%clk 0:00:02.9]} 46... Kf7 {[%clk 0:00:09.5]} 47.
Rf6+ {[%clk 0:00:02.9]} 47... Ke8 {[%clk 0:00:08.8]} 48. Bh6 {[%clk 0:00:03.8]}
48... Qxe5+ {[%clk 0:00:08.3]} 49. Rf4 {[%clk 0:00:02.4]} 49... d2 {[%clk
0:00:08.6]} 0-1

[Event "*** SCC Grand Prix: Titled Tuesday Blitz"]
[Site "Chess.com"]
[Date "2020.06.02"]
[Round "5"]
[White "Galileo22"]
[Black "Maksimus1998"]
[Result "0-1"]
[WhiteElo "2364"]
[BlackElo "2524"]
[TimeControl "180+1"]
[EndTime "10:59:14 PDT"]
[Termination "Maksimus1998 won by resignation"]

1. c4 {[%clk 0:03:00.9]} 1... e5 {[%clk 0:02:50.5]} 2. g3 {[%clk 0:03:00.6]}
2... Nf6 {[%clk 0:02:50.4]} 3. Bg2 {[%clk 0:03:01]} 3... h6 {[%clk 0:02:51.1]}
4. Nc3 {[%clk 0:02:41.1]} 4... Bb4 {[%clk 0:02:51]} 5. h3 {[%clk 0:02:28.5]}
5... O-O {[%clk 0:02:49]} 6. e4 {[%clk 0:02:25.8]} 6... d6 {[%clk 0:02:46.3]} 7.
Nge2 {[%clk 0:02:25.3]} 7... a6 {[%clk 0:02:46.1]} 8. O-O {[%clk 0:02:20.5]}
8... Nc6 {[%clk 0:02:43.4]} 9. Nd5 {[%clk 0:02:17.3]} 9... Bc5 {[%clk
0:02:43.3]} 10. d3 {[%clk 0:02:15.7]} 10... Nxd5 {[%clk 0:02:39.4]} 11. cxd5
{[%clk 0:02:09.5]} 11... Nd4 {[%clk 0:02:40.2]} 12. Kh2 {[%clk 0:01:44.6]} 12...
c6 {[%clk 0:02:40]} 13. dxc6 {[%clk 0:01:43.9]} 13... bxc6 {[%clk 0:02:39.9]}
14. f4 {[%clk 0:01:29]} 14... Rb8 {[%clk 0:02:37.2]} 15. f5 {[%clk 0:01:24.3]}
15... f6 {[%clk 0:02:28.6]} 16. g4 {[%clk 0:01:15.7]} 16... d5 {[%clk
0:02:24.2]} 17. Ng3 {[%clk 0:01:15]} 17... a5 {[%clk 0:01:54.6]} 18. h4 {[%clk
0:00:53.8]} 18... Be7 {[%clk 0:01:43.7]} 19. Bh3 {[%clk 0:00:48.1]} 19... Ba6
{[%clk 0:01:33.6]} 20. Rf2 {[%clk 0:00:47.3]} 20... Nb5 {[%clk 0:00:59]} 21. Qf3
{[%clk 0:00:32.1]} 21... Bc5 {[%clk 0:00:51]} 22. Rg2 {[%clk 0:00:27.4]} 22...
Nd4 {[%clk 0:00:50.5]} 23. Qd1 {[%clk 0:00:23.5]} 23... Be7 {[%clk 0:00:44.4]}
24. Nh5 {[%clk 0:00:20.6]} 24... dxe4 {[%clk 0:00:41.6]} 25. dxe4 {[%clk
0:00:19.3]} 25... Nb5 {[%clk 0:00:41.1]} 26. Qf3 {[%clk 0:00:15]} 26... Nd4
{[%clk 0:00:33]} 27. Qd1 {[%clk 0:00:14.6]} 27... Be2 {[%clk 0:00:24.4]} 28. Qa4
{[%clk 0:00:07.1]} 28... Bf3 {[%clk 0:00:22.3]} 29. Qc4+ {[%clk 0:00:05.2]}
29... Kh8 {[%clk 0:00:20.6]} 30. Rg3 {[%clk 0:00:05.5]} 30... Bxe4 {[%clk
0:00:20.7]} 31. b3 {[%clk 0:00:05.2]} 31... Qd5 {[%clk 0:00:17.8]} 32. Qf1
{[%clk 0:00:05.2]} 32... Nf3+ {[%clk 0:00:16.1]} 33. Rxf3 {[%clk 0:00:05.2]}
33... Bxf3 {[%clk 0:00:16.4]} 34. Be3 {[%clk 0:00:04.6]} 34... Qe4 {[%clk
0:00:16.1]} 35. Qf2 {[%clk 0:00:04.5]} 35... Bxg4 {[%clk 0:00:13.3]} 36. Ng3
{[%clk 0:00:04.5]} 36... Qf3 {[%clk 0:00:11.4]} 37. Qd2 {[%clk 0:00:04.1]} 37...
Bxh3 {[%clk 0:00:11.6]} 38. Bxh6 {[%clk 0:00:04]} 38... Qg2+ {[%clk 0:00:10.9]}
39. Qxg2 {[%clk 0:00:03.6]} 39... Bxg2 {[%clk 0:00:09.8]} 40. Bxg7+ {[%clk
0:00:04.5]} 40... Kxg7 {[%clk 0:00:10.1]} 0-1

[Event "*** SCC Grand Prix: Titled Tuesday Blitz"]
[Site "Chess.com"]
[Date "2020.06.02"]
[Round "5"]
[White "WonderChampion"]
[Black "queen_iryna"]
[Result "1-0"]
[WhiteElo "1976"]
[BlackElo "2262"]
[TimeControl "180+1"]
[EndTime "10:59:14 PDT"]
[Termination "WonderChampion won by resignation"]

1. e4 {[%clk 0:03:00.9]} 1... d6 {[%clk 0:03:00.2]} 2. d4 {[%clk 0:02:58.6]}
2... Nf6 {[%clk 0:03:01.1]} 3. Nc3 {[%clk 0:02:58.1]} 3... e5 {[%clk 0:03:00.3]}
4. dxe5 {[%clk 0:02:56.3]} 4... dxe5 {[%clk 0:03:01.2]} 5. Qxd8+ {[%clk
0:02:56]} 5... Kxd8 {[%clk 0:03:02.1]} 6. Nf3 {[%clk 0:02:55.1]} 6... Bd6 {[%clk
0:03:01.8]} 7. Bc4 {[%clk 0:02:54]} 7... Ke8 {[%clk 0:03:01.5]} 8. Bg5 {[%clk
0:02:54.1]} 8... Bg4 {[%clk 0:02:51.8]} 9. Bxf6 {[%clk 0:02:45.2]} 9... gxf6
{[%clk 0:02:51.5]} 10. O-O {[%clk 0:02:36.5]} 10... Bxf3 {[%clk 0:02:50.3]} 11.
gxf3 {[%clk 0:02:35.8]} 11... c6 {[%clk 0:02:48.9]} 12. Rad1 {[%clk 0:02:33.3]}
12... Bb4 {[%clk 0:02:32.9]} 13. Ne2 {[%clk 0:02:27.5]} 13... b5 {[%clk
0:02:16.8]} 14. Bb3 {[%clk 0:02:23.1]} 14... a5 {[%clk 0:02:16.5]} 15. c3 {[%clk
0:02:22.3]} 15... Bc5 {[%clk 0:02:10.5]} 16. a3 {[%clk 0:02:08.7]} 16... a4
{[%clk 0:01:53.4]} 17. Ba2 {[%clk 0:02:07]} 17... Na6 {[%clk 0:01:52.8]} 18. Ng3
{[%clk 0:02:04.2]} 18... Nc7 {[%clk 0:01:47.1]} 19. Nf5 {[%clk 0:01:59.8]} 19...
Ne6 {[%clk 0:01:40.2]} 20. Nd6+ {[%clk 0:01:43.4]} 20... Bxd6 {[%clk 0:01:20.7]}
21. Rxd6 {[%clk 0:01:41.7]} 21... Rg8+ {[%clk 0:01:02]} 22. Kh1 {[%clk
0:01:40.4]} 22... Rc8 {[%clk 0:00:41.2]} 23. Rfd1 {[%clk 0:01:24.2]} 23... Rd8
{[%clk 0:00:18.7]} 24. Bxe6 {[%clk 0:01:14.7]} 24... Rxd6 {[%clk 0:00:18]} 25.
Rxd6 {[%clk 0:01:13.4]} 25... fxe6 {[%clk 0:00:17.8]} 26. Rxe6+ {[%clk
0:01:13.9]} 26... Kd7 {[%clk 0:00:17.4]} 27. Rxf6 {[%clk 0:01:12.9]} 27... Rg7
{[%clk 0:00:16]} 28. Rf5 {[%clk 0:01:11.8]} 28... Kd6 {[%clk 0:00:15.9]} 29.
Rf6+ {[%clk 0:01:10.2]} 29... Kc5 {[%clk 0:00:15.4]} 30. Re6 {[%clk 0:01:06.5]}
30... Kc4 {[%clk 0:00:14.4]} 31. Rd6 {[%clk 0:00:55.4]} 31... Kb3 {[%clk
0:00:14.3]} 32. Rd2 {[%clk 0:00:55.2]} 32... c5 {[%clk 0:00:13.8]} 33. h3 {[%clk
0:00:50.6]} 33... Rg6 {[%clk 0:00:13.8]} 34. Kh2 {[%clk 0:00:49.1]} 34... Rg5
{[%clk 0:00:13.7]} 35. h4 {[%clk 0:00:47.4]} 35... Rg6 {[%clk 0:00:13.9]} 36. f4
{[%clk 0:00:33.1]} 36... exf4 {[%clk 0:00:13.2]} 37. f3 {[%clk 0:00:32.9]} 37...
Rg3 {[%clk 0:00:12.6]} 38. Re2 {[%clk 0:00:25.1]} 38... Rxf3 {[%clk 0:00:10.4]}
39. e5 {[%clk 0:00:25.1]} 39... Rg3 {[%clk 0:00:09.6]} 40. e6 {[%clk 0:00:24.7]}
40... Rg8 {[%clk 0:00:09.6]} 41. e7 {[%clk 0:00:24.6]} 41... Re8 {[%clk
0:00:10.2]} 42. Kg2 {[%clk 0:00:24.1]} 42... h5 {[%clk 0:00:09.5]} 43. Kf3
{[%clk 0:00:23.5]} 43... b4 {[%clk 0:00:09.5]} 44. cxb4 {[%clk 0:00:21.6]} 44...
cxb4 {[%clk 0:00:10.4]} 45. axb4 {[%clk 0:00:21.8]} 45... Kxb4 {[%clk
0:00:10.7]} 46. Kxf4 {[%clk 0:00:22.2]} 46... Kb3 {[%clk 0:00:11]} 47. Kg5
{[%clk 0:00:21.3]} 47... Rg8+ {[%clk 0:00:07.6]} 48. Kxh5 {[%clk 0:00:18.9]}
48... Rh8+ {[%clk 0:00:07.9]} 49. Kg6 {[%clk 0:00:19]} 49... Re8 {[%clk
0:00:07.6]} 50. Kf7 {[%clk 0:00:18.2]} 50... Rxe7+ {[%clk 0:00:06.4]} 51. Kxe7
{[%clk 0:00:18.2]} 1-0

[Event "*** SCC Grand Prix: Titled Tuesday Blitz"]
[Site "Chess.com"]
[Date "2020.06.02"]
[Round "5"]
[White "fabianvivasz"]
[Black "Klavdia_Nik"]
[Result "1-0"]
[WhiteElo "2283"]
[BlackElo "2054"]
[TimeControl "180+1"]
[EndTime "10:59:19 PDT"]
[Termination "fabianvivasz won on time"]

1. e4 {[%clk 0:01:37.3]} 1... e5 {[%clk 0:02:55.7]} 2. Nf3 {[%clk 0:01:35.7]}
2... Nc6 {[%clk 0:02:55.9]} 3. d4 {[%clk 0:01:34.5]} 3... exd4 {[%clk
0:02:55.1]} 4. Bc4 {[%clk 0:01:34.7]} 4... d6 {[%clk 0:02:50.5]} 5. Nxd4 {[%clk
0:01:31.8]} 5... Nf6 {[%clk 0:02:50.5]} 6. Nc3 {[%clk 0:01:31.3]} 6... Be7
{[%clk 0:02:50.7]} 7. f3 {[%clk 0:01:26.2]} 7... O-O {[%clk 0:02:51.6]} 8. Be3
{[%clk 0:01:25.9]} 8... Bd7 {[%clk 0:02:43.6]} 9. Qd2 {[%clk 0:01:25.6]} 9... a6
{[%clk 0:02:38.6]} 10. Bb3 {[%clk 0:01:24.4]} 10... Na5 {[%clk 0:02:32.1]} 11.
Nd5 {[%clk 0:01:03.7]} 11... Nxb3 {[%clk 0:02:30.5]} 12. Nxe7+ {[%clk
0:00:45.9]} 12... Qxe7 {[%clk 0:02:30.6]} 13. Nxb3 {[%clk 0:00:31.6]} 13... b6
{[%clk 0:01:45.1]} 14. O-O-O {[%clk 0:00:30.3]} 14... a5 {[%clk 0:01:42.1]} 15.
Bg5 {[%clk 0:00:23.3]} 15... Qe5 {[%clk 0:01:29.8]} 16. Qf4 {[%clk 0:00:19.5]}
16... Qxf4+ {[%clk 0:01:26.4]} 17. Bxf4 {[%clk 0:00:20.4]} 17... Bc6 {[%clk
0:01:21.4]} 18. Nd4 {[%clk 0:00:20]} 18... Bb7 {[%clk 0:01:21]} 19. Rhe1 {[%clk
0:00:20.3]} 19... Nd7 {[%clk 0:01:19.7]} 20. Nb5 {[%clk 0:00:18.4]} 20... Rac8
{[%clk 0:01:05.8]} 21. e5 {[%clk 0:00:18.4]} 21... d5 {[%clk 0:00:16.2]} 22. Bg3
{[%clk 0:00:14.9]} 22... Nc5 {[%clk 0:00:14.7]} 23. f4 {[%clk 0:00:11.5]} 23...
g6 {[%clk 0:00:14.1]} 24. Bh4 {[%clk 0:00:10.7]} 24... Ne6 {[%clk 0:00:12.3]}
25. Bf6 {[%clk 0:00:10.6]} 25... Rfe8 {[%clk 0:00:11.5]} 26. g3 {[%clk
0:00:10.3]} 26... Ba6 {[%clk 0:00:11.8]} 27. Nd4 {[%clk 0:00:07.9]} 27... c5
{[%clk 0:00:10.9]} 28. Nf3 {[%clk 0:00:07.2]} 28... h6 {[%clk 0:00:10.6]} 29.
Rxd5 {[%clk 0:00:06.4]} 29... Bb7 {[%clk 0:00:09.1]} 30. c4 {[%clk 0:00:05.6]}
30... Bxd5 {[%clk 0:00:08.3]} 31. cxd5 {[%clk 0:00:06.5]} 31... Nd4 {[%clk
0:00:08.4]} 32. Nxd4 {[%clk 0:00:06.5]} 32... cxd4+ {[%clk 0:00:08.8]} 33. Kd2
{[%clk 0:00:07.1]} 33... Rc5 {[%clk 0:00:08.2]} 34. d6 {[%clk 0:00:07.2]} 34...
Rb8 {[%clk 0:00:05.8]} 35. Kd3 {[%clk 0:00:06]} 35... Kf8 {[%clk 0:00:04.8]} 36.
g4 {[%clk 0:00:04.8]} 36... Ke8 {[%clk 0:00:04.5]} 37. f5 {[%clk 0:00:03.9]}
37... gxf5 {[%clk 0:00:03.8]} 38. gxf5 {[%clk 0:00:04.8]} 38... Kd7 {[%clk
0:00:03.9]} 39. Rg1 {[%clk 0:00:05.3]} 39... Kc6 {[%clk 0:00:03.5]} 40. Rg7
{[%clk 0:00:04.9]} 40... Rc2 {[%clk 0:00:01.8]} 41. Kxc2 {[%clk 0:00:04.5]} 1-0

[Event "*** SCC Grand Prix: Titled Tuesday Blitz"]
[Site "Chess.com"]
[Date "2020.06.02"]
[Round "5"]
[White "MYMChessAcademy"]
[Black "latixxa"]
[Result "1/2-1/2"]
[WhiteElo "2441"]
[BlackElo "2162"]
[TimeControl "180+1"]
[EndTime "10:59:20 PDT"]
[Termination "Game drawn by repetition"]

1. e4 {[%clk 0:03:00.9]} 1... c5 {[%clk 0:02:58.1]} 2. Ne2 {[%clk 0:03:00.4]}
2... d6 {[%clk 0:02:57]} 3. Nbc3 {[%clk 0:03:00.7]} 3... Nf6 {[%clk 0:02:53.2]}
4. g3 {[%clk 0:03:01]} 4... g6 {[%clk 0:02:52.7]} 5. Bg2 {[%clk 0:03:01.3]} 5...
Bg7 {[%clk 0:02:52.9]} 6. O-O {[%clk 0:03:02.2]} 6... Nc6 {[%clk 0:02:52.5]} 7.
d3 {[%clk 0:03:03]} 7... Rb8 {[%clk 0:02:51.6]} 8. h3 {[%clk 0:03:03.9]} 8... b5
{[%clk 0:02:50.9]} 9. f4 {[%clk 0:02:56.7]} 9... Bd7 {[%clk 0:02:48.9]} 10. Be3
{[%clk 0:02:51.4]} 10... b4 {[%clk 0:02:48.4]} 11. Na4 {[%clk 0:02:44.6]} 11...
Qa5 {[%clk 0:02:44]} 12. c3 {[%clk 0:02:40]} 12... O-O {[%clk 0:02:24.4]} 13.
Qc2 {[%clk 0:02:21.7]} 13... Nd8 {[%clk 0:02:05]} 14. b3 {[%clk 0:02:19.5]}
14... Ne8 {[%clk 0:01:57.5]} 15. Nb2 {[%clk 0:02:12.8]} 15... bxc3 {[%clk
0:01:56.5]} 16. Nd1 {[%clk 0:02:06.5]} 16... Nc7 {[%clk 0:01:51.8]} 17. Ndxc3
{[%clk 0:01:55.2]} 17... Nb5 {[%clk 0:01:51.3]} 18. Bd2 {[%clk 0:01:51.7]} 18...
Qa6 {[%clk 0:01:41.8]} 19. Rac1 {[%clk 0:01:47.2]} 19... Nd4 {[%clk 0:01:36.3]}
20. Nxd4 {[%clk 0:01:43.1]} 20... Bxd4+ {[%clk 0:01:37.2]} 21. Kh2 {[%clk
0:01:42.6]} 21... Nc6 {[%clk 0:01:37.1]} 22. Nd5 {[%clk 0:01:41.7]} 22... e6
{[%clk 0:01:33.5]} 23. Ne3 {[%clk 0:01:24.3]} 23... Nb4 {[%clk 0:01:32.8]} 24.
Bxb4 {[%clk 0:01:20.9]} 24... Rxb4 {[%clk 0:01:29.6]} 25. Nc4 {[%clk 0:01:18.3]}
25... Rfb8 {[%clk 0:01:27.8]} 26. e5 {[%clk 0:01:06.7]} 26... d5 {[%clk
0:01:20.5]} 27. Nd6 {[%clk 0:01:06]} 27... R4b6 {[%clk 0:01:16.4]} 28. h4 {[%clk
0:00:56.9]} 28... Rxd6 {[%clk 0:01:15.9]} 29. exd6 {[%clk 0:00:56.7]} 29... Qxd6
{[%clk 0:01:16.8]} 30. h5 {[%clk 0:00:52.1]} 30... gxh5 {[%clk 0:01:13.8]} 31.
Qe2 {[%clk 0:00:51.6]} 31... f5 {[%clk 0:00:54.4]} 32. Qxh5 {[%clk 0:00:49.9]}
32... Be8 {[%clk 0:00:54.3]} 33. Qg5+ {[%clk 0:00:29.9]} 33... Bg6 {[%clk
0:00:54.3]} 34. Bf3 {[%clk 0:00:28.5]} 34... Qd8 {[%clk 0:00:51]} 35. Qxd8+
{[%clk 0:00:25.5]} 35... Rxd8 {[%clk 0:00:51.9]} 36. Rfe1 {[%clk 0:00:25.7]}
36... Kf7 {[%clk 0:00:50.4]} 37. Kg2 {[%clk 0:00:23.8]} 37... Rb8 {[%clk
0:00:47.6]} 38. Rh1 {[%clk 0:00:21.8]} 38... Rb6 {[%clk 0:00:45.6]} 39. Bh5
{[%clk 0:00:21.6]} 39... Ra6 {[%clk 0:00:41.8]} 40. Rc2 {[%clk 0:00:20.5]} 40...
Rb6 {[%clk 0:00:33]} 41. Kf3 {[%clk 0:00:19.7]} 41... a5 {[%clk 0:00:16.7]} 42.
Bxg6+ {[%clk 0:00:18.2]} 42... hxg6 {[%clk 0:00:16.6]} 43. Rh7+ {[%clk
0:00:14.9]} 43... Kf6 {[%clk 0:00:16.7]} 44. Ra7 {[%clk 0:00:09.4]} 44... Rb5
{[%clk 0:00:16.6]} 45. g4 {[%clk 0:00:07.2]} 45... fxg4+ {[%clk 0:00:15.7]} 46.
Kxg4 {[%clk 0:00:08.1]} 46... Rb4 {[%clk 0:00:11.5]} 47. Rxa5 {[%clk 0:00:07]}
47... Be3 {[%clk 0:00:11.5]} 48. Ra4 {[%clk 0:00:06]} 48... Bd4 {[%clk
0:00:08.8]} 49. Rxb4 {[%clk 0:00:03.6]} 49... cxb4 {[%clk 0:00:09.7]} 50. Rc6
{[%clk 0:00:03.6]} 50... Bc3 {[%clk 0:00:09.9]} 51. Ra6 {[%clk 0:00:03]} 51...
Bb2 {[%clk 0:00:08.4]} 52. Rb6 {[%clk 0:00:01.9]} 52... Ba3 {[%clk 0:00:08.4]}
53. Rb5 {[%clk 0:00:02.5]} 53... Ke7 {[%clk 0:00:06.6]} 54. Rb6 {[%clk
0:00:02.4]} 54... Kf6 {[%clk 0:00:07.5]} 55. Ra6 {[%clk 0:00:02.9]} 55... Bb2
{[%clk 0:00:07.2]} 56. Ra5 {[%clk 0:00:02.3]} 56... Ba3 {[%clk 0:00:06.6]} 57.
Ra6 {[%clk 0:00:02.8]} 57... Bb2 {[%clk 0:00:06.5]} 1/2-1/2

[Event "*** SCC Grand Prix: Titled Tuesday Blitz"]
[Site "Chess.com"]
[Date "2020.06.02"]
[Round "5"]
[White "elohunter1999"]
[Black "kuban1991"]
[Result "0-1"]
[WhiteElo "2511"]
[BlackElo "2716"]
[TimeControl "180+1"]
[EndTime "10:59:21 PDT"]
[Termination "kuban1991 won by resignation"]

1. e4 {[%clk 0:03:00.9]} 1... e6 {[%clk 0:02:59.1]} 2. d4 {[%clk 0:03:00.9]}
2... d5 {[%clk 0:02:58.5]} 3. Nc3 {[%clk 0:03:01.2]} 3... Bb4 {[%clk 0:02:57.2]}
4. e5 {[%clk 0:03:01.5]} 4... c5 {[%clk 0:02:56.6]} 5. a3 {[%clk 0:03:01.9]}
5... Bxc3+ {[%clk 0:02:57.1]} 6. bxc3 {[%clk 0:03:02.8]} 6... Nc6 {[%clk
0:02:57.5]} 7. Qg4 {[%clk 0:03:02.5]} 7... g6 {[%clk 0:02:57.6]} 8. Nf3 {[%clk
0:03:02.6]} 8... Bd7 {[%clk 0:02:57.2]} 9. Qf4 {[%clk 0:02:45.8]} 9... h6 {[%clk
0:02:48.8]} 10. h4 {[%clk 0:02:44.5]} 10... Qa5 {[%clk 0:02:47.5]} 11. Bd2
{[%clk 0:02:43.8]} 11... c4 {[%clk 0:02:47.9]} 12. Be2 {[%clk 0:02:29.8]} 12...
Rh7 {[%clk 0:02:46]} 13. Nh2 {[%clk 0:02:22]} 13... O-O-O {[%clk 0:02:45.6]} 14.
Ng4 {[%clk 0:02:21.4]} 14... f5 {[%clk 0:02:12.8]} 15. exf6 {[%clk 0:02:07.4]}
15... Rf8 {[%clk 0:02:12.7]} 16. Qd6 {[%clk 0:02:00.4]} 16... Rff7 {[%clk
0:01:55.8]} 17. Ne5 {[%clk 0:01:24.3]} 17... Rxf6 {[%clk 0:01:37.7]} 18. O-O
{[%clk 0:01:23.8]} 18... Qc7 {[%clk 0:01:17.3]} 19. Qxc7+ {[%clk 0:01:16.6]}
19... Kxc7 {[%clk 0:01:18.2]} 20. Ng4 {[%clk 0:01:11.2]} 20... Rf8 {[%clk
0:01:15.5]} 21. g3 {[%clk 0:01:11.6]} 21... h5 {[%clk 0:01:08.3]} 22. Nh2 {[%clk
0:01:06.7]} 22... Nf6 {[%clk 0:01:06.9]} 23. Bf4+ {[%clk 0:01:05.9]} 23... Kc8
{[%clk 0:01:06.3]} 24. Bf3 {[%clk 0:01:04.8]} 24... Ne8 {[%clk 0:00:55.4]} 25.
Rfe1 {[%clk 0:01:01.9]} 25... Rxf4 {[%clk 0:00:53.8]} 26. gxf4 {[%clk
0:01:01.6]} 26... Rf7 {[%clk 0:00:54.4]} 27. Kg2 {[%clk 0:00:54.6]} 27... Rxf4
{[%clk 0:00:51.8]} 28. Kg3 {[%clk 0:00:50.2]} 28... Rf6 {[%clk 0:00:52.2]} 29.
Bg2 {[%clk 0:00:44]} 29... Nd6 {[%clk 0:00:50.8]} 30. f4 {[%clk 0:00:41.8]}
30... Nf5+ {[%clk 0:00:44.9]} 31. Kh3 {[%clk 0:00:41.8]} 31... Rf8 {[%clk
0:00:41.4]} 32. Nf3 {[%clk 0:00:37.8]} 32... e5 {[%clk 0:00:31.6]} 33. fxe5
{[%clk 0:00:25.5]} 33... Nfxd4+ {[%clk 0:00:30.5]} 34. Kg3 {[%clk 0:00:14.7]}
34... Nxc2 {[%clk 0:00:25]} 35. e6 {[%clk 0:00:14.5]} 35... Be8 {[%clk
0:00:25.5]} 36. Ng5 {[%clk 0:00:14.3]} 36... Nxa1 {[%clk 0:00:22.1]} 37. Rxa1
{[%clk 0:00:15.2]} 37... Kc7 {[%clk 0:00:20]} 38. Bxd5 {[%clk 0:00:14.8]} 38...
b5 {[%clk 0:00:18.2]} 39. Be4 {[%clk 0:00:14.8]} 39... Ne7 {[%clk 0:00:18.5]}
40. Rd1 {[%clk 0:00:14.8]} 40... a5 {[%clk 0:00:18]} 41. Rb1 {[%clk 0:00:14.1]}
41... Bc6 {[%clk 0:00:17.3]} 42. Bxc6 {[%clk 0:00:13.8]} 42... Kxc6 {[%clk
0:00:18.2]} 43. Rd1 {[%clk 0:00:13.9]} 43... Nd5 {[%clk 0:00:17.4]} 44. Nh7
{[%clk 0:00:10.8]} 44... Rf5 {[%clk 0:00:12.5]} 45. Rxd5 {[%clk 0:00:08.4]}
45... Kxd5 {[%clk 0:00:11.9]} 46. e7 {[%clk 0:00:08.7]} 46... Re5 {[%clk
0:00:12.2]} 47. e8=Q {[%clk 0:00:08]} 47... Rxe8 {[%clk 0:00:11.3]} 48. Nf6+
{[%clk 0:00:08.7]} 48... Ke5 {[%clk 0:00:11.1]} 49. Nxe8 {[%clk 0:00:09.4]}
49... b4 {[%clk 0:00:10.1]} 50. axb4 {[%clk 0:00:05.7]} 50... axb4 {[%clk
0:00:11]} 51. Nc7 {[%clk 0:00:05.8]} 51... bxc3 {[%clk 0:00:07.3]} 52. Nb5
{[%clk 0:00:01.8]} 52... c2 {[%clk 0:00:07.3]} 53. Nc3 {[%clk 0:00:02.1]} 53...
c1=Q {[%clk 0:00:07]} 0-1